[Event "Hungarian Youth-ch I 2024"]
[Site "Szolnok"]
[Date "2024.04.04"]
[Round "6.20"]
[White "Koncz, Botond"]
[Black "Cser, Matyas"]
[Result "0-1"]
[ECO "B01"]
[WhiteElo "1474"]
[BlackElo "1420"]
[Annotator "NA RC"]
[PlyCount "102"]
[EventDate "2024.03.31"]
[EventType "swiss"]
[EventCountry "HUN"]
[SourceTitle "playchess.com"]
[Source "ChessBase"]
[SourceQuality "1"]
[TimeControl "5400+30"]

1. e4 {[%emt 0:00:05]} d5 {[%emt 0:00:04]} 2. exd5 {[%emt 0:00:28]} c6 {[%emt 0:00:31]} 3. dxc6 {[%emt 0:01:25]} Nxc6 {[%emt 0:01:13]} 4. Nf3 {[%emt 0:00:02]} e5 {[%emt 0:01:10]} 5. d3 {[%emt 0:01:55]} Bc5 {[%emt 0:03:02]} 6. Be2 {[%emt 0:02:15]} Nf6 {[%emt 0:03:30]} 7. Bg5 {[%emt 0:02:33]} O-O {[%emt 0:05:46]} 8. Nbd2 h6 {[%emt 0:07:00]} 9. Bh4 {[%emt 0:10:03]} Nd4 {[%emt 0:09:48]} 10. O-O {[%emt 0:13:21]} Bg4 {[%emt 0:07:37]} 11. h3 {[%emt 0:14:26]} Bh5 {[%emt 0:07:35]} 12. Bxf6 {[%emt 0:06:33]} Nxf3+ {[%emt 0:03:51]} 13. Bxf3 {[%emt 0:01:22]} Bxf3 {[%emt 0:01:44]} 14. Nxf3 {[%emt 0:00:33]} Qxf6 {[%emt 0:01:26]} 15. Re1 {[%emt 0:02:06]} Rae8 {[%emt 0:00:34]} 16. Qe2 {[%emt 0:03:16]} Bd6 {[%emt 0:00:48]} 17. Nd2 {[%emt 0:00:54]} Qe6 {[%emt 0:01:29]} 18. Ne4 {[%emt 0:01:18]} f5 {[%emt 0:02:02]} 19. Nd2 {[%emt 0:02:59]} b5 {[%emt 0:02:21]} 20. d4 {[%emt 0:02:05]} e4 {[%emt 0:01:52]} 21. Qxb5 {[%emt 0:01:50]} g5 {[%emt 0:03:40]} 22. f3 {[%emt 0:05:18]} e3 {[%emt 0:03:46]} 23. Qe2 {[%emt 0:03:06]} Kg7 {[%emt 0:01:57]} 24. Nf1 {[%emt 0:05:48]} f4 {[%emt 0:02:08]} 25. Qa6 {[%emt 0:02:59]} Rf7 {[%emt 0:01:57]} 26. Qe2 {[%emt 0:01:34]} Rfe7 {[%emt 0:02:24]} 27. a3 {[%emt 0:01:42]} h5 {[%emt 0:01:48]} 28. Kh1 {[%emt 0:01:59]} a5 {[%emt 0:01:27]} 29. Rac1 {[%emt 0:01:13]} Qd5 {[%emt 0:01:37]} 30. Red1 {[%emt 0:00:54]} Qa2 {[%emt 0:02:10]} 31. Rb1 {[%emt 0:01:19]} Rc7 {[%emt 0:02:11]} 32. Re1 {[%emt 0:02:04]} Rec8 {[%emt 0:01:32]} 33. c3 {[%emt 0:00:34]} Qc4 {[%emt 0:01:09]} 34. g3 {[%emt 0:01:51]} Qxe2 {[%emt 0:01:13]} 35. Rxe2 {[%emt 0:00:11]} Kf6 {[%emt 0:01:51]} 36. g4 {[%emt 0:01:14]} h4 {[%emt 0:00:25]} 37. Kg2 {[%emt 0:00:29]} Rb8 {[%emt 0:00:16]} 38. b4 {[%emt 0:01:34]} Rxc3 {[%emt 0:00:27]} 39. Reb2 {[%emt 0:01:49]} axb4 {[%emt 0:01:34]} 40. axb4 {[%emt 0:00:12]} Rc6 {[%emt 0:00:27]} 41. b5 {[%emt 0:00:44]} Rcb6 {[%emt 0:00:19]} 42. Re2 {[%emt 0:00:33]} Rxb5 {[%emt 0:00:13]} 43. Rxb5 {[%emt 0:00:21]} Rxb5 {[%emt 0:00:07]} 44. Kg1 {[%emt 0:00:37]} Rb3 {[%emt 0:00:21]} 45. Rc2 {[%emt 0:00:53]} Ke6 {[%emt 0:00:41]} 46. Nh2 {[%emt 0:00:32]} Kd5 {[%emt 0:00:39]} 47. Re2 {[%emt 0:01:33]} Kxd4 {[%emt 0:00:07]} 48. Kf1 {[%emt 0:00:23]} Bb4 {[%emt 0:00:25]} 49. Kg2 {[%emt 0:00:35]} Bd2 {[%emt 0:00:24]} 50. Nf1 {[%emt 0:00:14]} Rb2 {[%emt 0:00:42]} 51. Kg1 {[%emt 0:00:30]} Kd3 {[%emt 0:00:09]} 0-1

[Event "Hungarian Youth-ch I 2024"]
[Site "Szolnok"]
[Date "2024.04.04"]
[Round "6.24"]
[White "Karacsonyi, Luca"]
[Black "Kovacs, Reka"]
[Result "0-1"]
[ECO "C55"]
[WhiteElo "1956"]
[BlackElo "1855"]
[Annotator "RC"]
[PlyCount "146"]
[EventDate "2024.03.31"]
[EventType "swiss"]
[EventCountry "HUN"]
[SourceTitle "playchess.com"]
[Source "ChessBase"]
[SourceQuality "1"]
[TimeControl "5400+30"]

1. e4 {[%emt 0:00:03]} e5 {[%emt 0:00:08]} 2. Nf3 {[%emt 0:00:07]} Nc6 {[%emt 0:00:06]} 3. Bc4 {[%emt 0:00:06]} Nf6 {[%emt 0:00:08]} 4. d3 {[%emt 0:01:49]} h6 {[%emt 0:00:22]} 5. c3 {[%emt 0:00:43]} d6 {[%emt 0:00:39]} 6. Nbd2 {[%emt 0:02:21]} g5 {[%emt 0:01:01]} 7. h3 {[%emt 0:05:32]} Bg7 {[%emt 0:00:58]} 8. Nf1 {[%emt 0:02:36]} d5 {[%emt 0:01:37]} 9. exd5 {[%emt 0:13:35]} Nxd5 {[%emt 0:00:34]} 10. Ne3 {[%emt 0:04:46]} Nxe3 {[%emt 0:09:05]} 11. Bxe3 {[%emt 0:01:42]} Qd6 {[%emt 0:14:11]} 12. Nd2 {[%emt 0:09:55]} Ne7 {[%emt 0:14:09]} 13. Ne4 {[%emt 0:06:08]} Qc6 {[%emt 0:01:31]} 14. Qb3 {[%emt 0:17:29]} Qg6 {[%emt 0:08:37]} 15. O-O-O {[%emt 0:06:06]} O-O {[%emt 0:05:16]} 16. h4 {[%emt 0:04:05]} g4 {[%emt 0:02:13]} 17. f3 {[%emt 0:01:46]} h5 {[%emt 0:03:44]} 18. fxg4 {[%emt 0:07:48]} Bxg4 {[%emt 0:00:23]} 19. Rdf1 {[%emt 0:00:20]} Nf5 {[%emt 0:08:12]} 20. Bc5 {[%emt 0:01:08]} Bh6+ {[%emt 0:16:21]} 21. Kb1 {[%emt 0:00:08]} Rfb8 {[%emt 0:00:50]} 22. Be7 {[%emt 0:01:23]} Bf4 {[%emt 0:03:15]} 23. g3 {[%emt 0:08:11]} Nxe7 {[%emt 0:01:20]} 24. gxf4 {[%emt 0:00:08]} b5 {[%emt 0:00:37]} 25. f5 {[%emt 0:01:48]} Nxf5 {[%emt 0:00:47]} 26. Bxf7+ {[%emt 0:01:17]} Qxf7 {[%emt 0:00:02]} 27. Nf6+ {[%emt 0:00:06]} Kg7 {[%emt 0:00:44]} 28. Qxf7+ {[%emt 0:00:11]} Kxf7 {[%emt 0:00:01]} 29. Nxg4 {[%emt 0:00:02]} Ke6 {[%emt 0:00:42]} 30. Nxe5 {[%emt 0:03:28]} Kxe5 {[%emt 0:00:27]} 31. Re1+ {[%emt 0:00:11]} Kd6 {[%emt 0:00:29]} 32. Rhf1 {[%emt 0:00:55]} Rf8 {[%emt 0:01:04]} 33. Rf4 {[%emt 0:00:27]} Ng7 {[%emt 0:04:17]} 34. Rd4+ {[%emt 0:00:17]} Kc6 {[%emt 0:00:19]} 35. Re7 {[%emt 0:00:47]} Nf5 {[%emt 0:00:15]} 36. Re6+ {[%emt 0:00:04]} Nd6 {[%emt 0:00:22]} 37. c4 {[%emt 0:00:31]} bxc4 {[%emt 0:00:48]} 38. dxc4 {[%emt 0:00:18]} a5 {[%emt 0:01:16]} 39. Rd5 {[%emt 0:00:37]} Rf1+ {[%emt 0:00:58]} 40. Kc2 {[%emt 0:00:07]} Rf2+ {[%emt 0:00:47]} 41. Kc3 {[%emt 0:00:27]} Rf3+ {[%emt 0:01:36]} 42. Kc2 {[%emt 0:00:08]} Rf2+ {[%emt 0:00:37]} 43. Kc3 {[%emt 0:00:07]} Rf4 {[%emt 0:00:28]} 44. Rxh5 {[%emt 0:00:51]} Rxc4+ {[%emt 0:00:05]} 45. Kd3 {[%emt 0:00:39]} Rc5 {[%emt 0:00:39]} 46. Rxc5+ {[%emt 0:01:07]} Kxc5 {[%emt 0:00:01]} 47. h5 {[%emt 0:00:40]} Rh8 {[%emt 0:00:42]} 48. Re5+ {[%emt 0:00:48]} Kc6 {[%emt 0:00:07]} 49. Rxa5 {[%emt 0:00:22]} Kd7 {[%emt 0:00:46]} 50. a4 {[%emt 0:00:32]} Nb7 {[%emt 0:00:27]} 51. Rg5 {[%emt 0:00:16]} Kc6 {[%emt 0:00:32]} 52. b4 {[%emt 0:00:21]} Nd6 {[%emt 0:00:26]} 53. b5+ {[%emt 0:01:03]} Kb6 {[%emt 0:00:20]} 54. Kd4 {[%emt 0:00:21]} Ra8 {[%emt 0:00:24]} 55. Kd5 {[%emt 0:00:42]} Rxa4 {[%emt 0:00:11]} 56. h6 {[%emt 0:00:32]} Rh4 {[%emt 0:00:18]} 57. Rg6 {[%emt 0:00:09]} Kxb5 {[%emt 0:00:31]} 58. Rf6 {[%emt 0:00:50]} Ne8 {[%emt 0:01:07]} 59. Re6 {[%emt 0:00:30]} Nd6 {[%emt 0:00:37]} 60. Rf6 {[%emt 0:00:15]} Rh5+ {[%emt 0:01:05]} 61. Ke6 {[%emt 0:00:22]} Kc6 {[%emt 0:00:30]} 62. Ke7 {[%emt 0:00:19]} Kd5 {[%emt 0:00:33]} 63. Kf8 {[%emt 0:01:03]} Ke5 {[%emt 0:00:25]} 64. Rg6 {[%emt 0:00:20]} Kf5 {[%emt 0:00:25]} 65. Kg7 {[%emt 0:00:30]} Ne8+ {[%emt 0:00:17]} 66. Kf7 {[%emt 0:00:26]} Nd6+ {[%emt 0:00:25]} 67. Kg7 {[%emt 0:00:07]} Ke5 {[%emt 0:01:17]} 68. Kf8 {[%emt 0:01:05]} Nf5 {[%emt 0:00:26]} 69. Rc6 {[%emt 0:00:32]} Rxh6 {[%emt 0:00:10]} 70. Rc5+ {[%emt 0:00:24]} Kf6 {[%emt 0:00:37]} 71. Ke8 {[%emt 0:00:35]} Rh7 {[%emt 0:00:40]} 72. Rc6+ {[%emt 0:00:33]} Nd6+ {[%emt 0:00:36]} 73. Kd8 {[%emt 0:00:20]} Ke6 {[%emt 0:00:14]} 0-1

[Event "Hungarian Youth-ch I 2024"]
[Site "Szolnok"]
[Date "2024.04.04"]
[Round "6.25"]
[White "Bende, Eniko Tunde"]
[Black "Beznicza, Mira"]
[Result "0-1"]
[ECO "C02"]
[WhiteElo "1650"]
[BlackElo "1801"]
[Annotator "NA RC"]
[PlyCount "84"]
[EventDate "2024.03.31"]
[EventType "swiss"]
[EventCountry "HUN"]
[SourceTitle "playchess.com"]
[Source "ChessBase"]
[SourceQuality "1"]
[TimeControl "5400+30"]

1. e4 {[%emt 0:00:01]} e6 {[%emt 0:00:10]} 2. d4 {[%emt 0:00:07]} d5 {[%emt 0:00:06]} 3. e5 {[%emt 0:00:05]} c5 {[%emt 0:00:10]} 4. c3 {[%emt 0:00:10]} Nc6 {[%emt 0:00:10]} 5. Nf3 {[%emt 0:00:18]} Qb6 {[%emt 0:00:27]} 6. a3 {[%emt 0:00:25]} Nh6 {[%emt 0:01:15]} 7. b4 {[%emt 0:00:29]} cxd4 {[%emt 0:04:17]} 8. cxd4 {[%emt 0:00:09]} Nf5 {[%emt 0:02:52]} 9. Bb2 {[%emt 0:00:09]} a6 {[%emt 0:05:52]} 10. Be2 {[%emt 0:01:06]} Be7 {[%emt 0:05:16]} 11. O-O {[%emt 0:00:37]} O-O {[%emt 0:00:51]} 12. Qd3 {[%emt 0:00:35]} Bd7 {[%emt 0:01:14]} 13. Nbd2 {[%emt 0:01:01]} Na7 {[%emt 0:03:59]} 14. Nb3 {[%emt 0:02:01]} Rac8 {[%emt 0:06:45]} 15. Rac1 {[%emt 0:07:22]} f6 {[%emt 0:04:38]} 16. Qd2 {[%emt 0:00:58]} Nc6 {[%emt 0:05:04]} 17. Nc5 {[%emt 0:02:59]} Rc7 {[%emt 0:02:49]} 18. Rfe1 {[%emt 0:04:57]} fxe5 {[%emt 0:01:49]} 19. dxe5 {[%emt 0:03:58]} h6 {[%emt 0:02:59]} 20. Bd3 {[%emt 0:04:26]} Bc8 {[%emt 0:17:40]} 21. Rf1 {[%emt 0:09:54]} Bd8 {[%emt 0:06:22]} 22. Qc2 {[%emt 0:02:10]} Qa7 {[%emt 0:05:34]} 23. g4 {[%emt 0:05:31]} Nh4 {[%emt 0:05:16]} 24. Nxh4 {[%emt 0:00:49]} Bxh4 {[%emt 0:00:19]} 25. Bh7+ {[%emt 0:01:09]} Kh8 {[%emt 0:00:09]} 26. Qg6 {[%emt 0:01:29]} Ne7 {[%emt 0:01:41]} 27. Qb1 {[%emt 0:00:37]} b6 {[%emt 0:01:05]} 28. Nb3 {[%emt 0:01:30]} Rxc1 {[%emt 0:00:41]} 29. Bxc1 {[%emt 0:02:31]} Qc7 {[%emt 0:01:26]} 30. f4 {[%emt 0:08:50]} Bd7 {[%emt 0:03:45]} 31. Rf3 {[%emt 0:01:18]} Nc8 {[%emt 0:08:31]} 32. Rh3 {[%emt 0:01:50]} Bd8 {[%emt 0:00:50]} 33. g5 {[%emt 0:00:19]} Bxg5 {[%emt 0:00:49]} 34. fxg5 {[%emt 0:01:11]} Qc4 {[%emt 0:00:36]} 35. Bd3 {[%emt 0:03:05]} Qg4+ {[%emt 0:00:51]} 36. Rg3 {[%emt 0:00:28]} Qd1+ {[%emt 0:00:11]} 37. Kg2 {[%emt 0:00:57]} Ba4 {[%emt 0:00:56]} 38. gxh6 {[%emt 0:01:27]} g6 {[%emt 0:00:18]} 39. Nd2 {[%emt 0:03:33]} d4 {[%emt 0:01:24]} 40. h7 {[%emt 0:02:52]} Bc6+ {[%emt 0:00:22]} 41. Ne4 {[%emt 0:01:02]} Bxe4+ {[%emt 0:00:13]} 42. Kh3 {[%emt 0:01:55]} Qh5# 0-1

[Event "Hungarian Youth-ch I 2024"]
[Site "Szolnok"]
[Date "2024.04.04"]
[Round "6.26"]
[White "Szarvas, Nora"]
[Black "Toth, Timea"]
[Result "1-0"]
[ECO "B28"]
[WhiteElo "1955"]
[BlackElo "1978"]
[Annotator "RC"]
[PlyCount "107"]
[EventDate "2024.03.31"]
[EventType "swiss"]
[EventCountry "HUN"]
[SourceTitle "playchess.com"]
[Source "ChessBase"]
[SourceQuality "1"]
[TimeControl "5400+30"]

1. e4 {[%emt 0:00:03]} c5 {[%emt 0:00:03]} 2. Nf3 {[%emt 0:00:16]} a6 {[%emt 0:00:03]} 3. d4 {[%emt 0:00:09]} cxd4 {[%emt 0:00:03]} 4. Nxd4 {[%emt 0:00:06]} Nf6 {[%emt 0:00:12]} 5. Nc3 {[%emt 0:00:15]} e5 {[%emt 0:00:04]} 6. Nb3 {[%emt 0:00:37]} Bb4 {[%emt 0:00:06]} 7. Qf3 {[%emt 0:14:46]} d5 {[%emt 0:14:41]} 8. exd5 {[%emt 0:01:24]} Qxd5 {[%emt 0:09:59]} 9. Qxd5 {[%emt 0:18:07]} Nxd5 {[%emt 0:00:08]} 10. Bd2 {[%emt 0:00:05]} Nxc3 {[%emt 0:00:41]} 11. bxc3 {[%emt 0:08:34]} Be7 {[%emt 0:07:28]} 12. Bd3 {[%emt 0:01:55]} Nc6 {[%emt 0:00:25]} 13. O-O-O {[%emt 0:01:02]} Be6 {[%emt 0:00:56]} 14. Rhe1 {[%emt 0:04:28]} O-O {[%emt 0:05:03]} 15. Be4 {[%emt 0:02:42]} Rac8 {[%emt 0:00:38]} 16. Bxc6 {[%emt 0:04:41]} Rxc6 {[%emt 0:00:39]} 17. Rxe5 {[%emt 0:01:47]} Bf6 {[%emt 0:20:14]} 18. Re3 {[%emt 0:01:16]} Rfc8 {[%emt 0:00:37]} 19. Kb2 {[%emt 0:00:58]} Rd8 {[%emt 0:03:06]} 20. Rd3 {[%emt 0:05:41]} Rdc8 {[%emt 0:12:47]} 21. Be1 {[%emt 0:04:53]} h6 {[%emt 0:00:30]} 22. h3 {[%emt 0:02:08]} Bf5 {[%emt 0:02:54]} 23. Re3 {[%emt 0:01:35]} Bg6 {[%emt 0:01:27]} 24. g4 {[%emt 0:02:44]} Bg5 {[%emt 0:02:33]} 25. Re2 {[%emt 0:01:21]} Bf6 {[%emt 0:08:16]} 26. Nd4 {[%emt 0:01:32]} Rb6+ {[%emt 0:01:08]} 27. Kc1 {[%emt 0:01:12]} Bg5+ {[%emt 0:00:50]} 28. Bd2 {[%emt 0:00:06]} Rxc3 {[%emt 0:01:09]} 29. f4 {[%emt 0:01:23]} Rc4 {[%emt 0:03:06]} 30. Re8+ {[%emt 0:01:51]} Kh7 {[%emt 0:00:05]} 31. Be3 {[%emt 0:02:05]} f5 {[%emt 0:03:41]} 32. Rb8 {[%emt 0:03:55]} Be7 {[%emt 0:00:13]} 33. gxf5 {[%emt 0:03:32]} Ba3+ {[%emt 0:02:13]} 34. Kd2 {[%emt 0:00:13]} Bh5 {[%emt 0:00:21]} 35. Rg1 {[%emt 0:01:40]} Bb4+ {[%emt 0:00:55]} 36. Kd3 {[%emt 0:00:14]} Rc3+ {[%emt 0:00:31]} 37. Ke4 {[%emt 0:00:17]} Bc5 {[%emt 0:00:23]} 38. Rc8 {[%emt 0:03:55]} Bxd4 {[%emt 0:00:49]} 39. Rxc3 {[%emt 0:00:35]} Bxe3 {[%emt 0:00:21]} 40. Kxe3 {[%emt 0:00:20]} Rf6 {[%emt 0:00:30]} 41. Rc7 {[%emt 0:00:20]} Bf7 {[%emt 0:00:02]} 42. Rxb7 {[%emt 0:00:36]} Rxf5 {[%emt 0:00:08]} 43. Ke4 {[%emt 0:00:33]} Rf6 {[%emt 0:00:05]} 44. f5 {[%emt 0:01:03]} Kh8 {[%emt 0:00:36]} 45. Rd1 {[%emt 0:00:25]} g6 {[%emt 0:01:01]} 46. fxg6 {[%emt 0:02:16]} Bxg6+ {[%emt 0:00:05]} 47. Ke5 {[%emt 0:00:07]} Rf8 {[%emt 0:01:08]} 48. c4 {[%emt 0:00:55]} Rc8 {[%emt 0:00:29]} 49. Rd6 {[%emt 0:00:37]} Bh7 {[%emt 0:01:05]} 50. Rxh6 {[%emt 0:00:18]} Re8+ {[%emt 0:00:14]} 51. Kd6 {[%emt 0:00:23]} Rd8+ {[%emt 0:00:18]} 52. Rd7 {[%emt 0:00:10]} Rxd7+ {[%emt 0:00:36]} 53. Kxd7 {[%emt 0:00:05]} Kg7 {[%emt 0:00:06]} 54. Rxh7+ {[%emt 0:00:04]} 1-0

[Event "Hungarian Youth-ch I 2024"]
[Site "Szolnok"]
[Date "2024.04.04"]
[Round "6.27"]
[White "Nandin-Erdene, Davaademberel"]
[Black "Balazs, Sztella Anna"]
[Result "1-0"]
[ECO "A05"]
[WhiteElo "1978"]
[BlackElo "1805"]
[Annotator "RC"]
[PlyCount "109"]
[EventDate "2024.03.31"]
[EventType "swiss"]
[EventCountry "HUN"]
[SourceTitle "playchess.com"]
[Source "ChessBase"]
[SourceQuality "1"]
[TimeControl "5400+30"]

1. Nf3 {[%emt 0:00:07]} Nf6 {[%emt 0:00:14]} 2. g3 {[%emt 0:00:07]} e6 {[%emt 0:00:06]} 3. Bg2 {[%emt 0:00:11]} d5 {[%emt 0:00:07]} 4. O-O {[%emt 0:00:24]} Be7 {[%emt 0:00:26]} 5. d3 {[%emt 0:00:13]} c5 {[%emt 0:00:59]} 6. Nbd2 {[%emt 0:00:20]} Nc6 {[%emt 0:00:17]} 7. e4 {[%emt 0:00:46]} Qc7 {[%emt 0:01:07]} 8. Re1 {[%emt 0:00:35]} b6 {[%emt 0:00:49]} 9. Nf1 {[%emt 0:01:48]} d4 {[%emt 0:07:47]} 10. e5 {[%emt 0:03:46]} Nd7 {[%emt 0:03:56]} 11. Bf4 {[%emt 0:00:28]} h6 {[%emt 0:03:10]} 12. h4 {[%emt 0:00:56]} Bb7 {[%emt 0:00:32]} 13. N1h2 {[%emt 0:13:08]} O-O-O {[%emt 0:04:57]} 14. Qe2 {[%emt 0:02:37]} Rdg8 {[%emt 0:01:29]} 15. h5 {[%emt 0:07:40]} g5 {[%emt 0:03:58]} 16. hxg6 {[%emt 0:11:08]} fxg6 {[%emt 0:00:55]} 17. Bh3 {[%emt 0:12:47]} g5 {[%emt 0:04:37]} 18. Bc1 {[%emt 0:02:23]} Rg6 {[%emt 0:02:51]} 19. c3 {[%emt 0:03:14]} Kb8 {[%emt 0:19:33]} 20. cxd4 {[%emt 0:01:26]} Nxd4 {[%emt 0:01:52]} 21. Nxd4 {[%emt 0:00:13]} cxd4 {[%emt 0:00:04]} 22. Bg2 {[%emt 0:05:05]} Nc5 {[%emt 0:04:27]} 23. Bxb7 {[%emt 0:05:03]} Qxb7 {[%emt 0:01:48]} 24. Bd2 {[%emt 0:05:48]} Rg7 {[%emt 0:06:03]} 25. b4 {[%emt 0:01:55]} Na6 {[%emt 0:03:22]} 26. Rab1 {[%emt 0:02:15]} Qd5 {[%emt 0:03:35]} 27. a4 {[%emt 0:02:18]} Ka8 {[%emt 0:01:09]} 28. Qe4 {[%emt 0:01:36]} Rd8 {[%emt 0:01:01]} 29. Nf3 {[%emt 0:00:13]} Kb8 {[%emt 0:05:30]} 30. Qxd5 {[%emt 0:00:21]} Rxd5 {[%emt 0:00:13]} 31. Re4 {[%emt 0:00:10]} Bd8 {[%emt 0:00:49]} 32. Nxd4 {[%emt 0:03:29]} Rgd7 {[%emt 0:01:16]} 33. Be3 {[%emt 0:00:45]} Bc7 {[%emt 0:00:39]} 34. Nxe6 {[%emt 0:04:18]} Rxd3 {[%emt 0:00:28]} 35. b5 {[%emt 0:00:28]} Rd1+ {[%emt 0:00:46]} 36. Rxd1 {[%emt 0:00:06]} Rxd1+ {[%emt 0:00:04]} 37. Kg2 {[%emt 0:00:05]} Nc5 {[%emt 0:00:07]} 38. Bxc5 {[%emt 0:00:26]} bxc5 {[%emt 0:00:05]} 39. Nxc5 {[%emt 0:00:04]} Bb6 {[%emt 0:00:42]} 40. Na6+ {[%emt 0:01:31]} Kc8 {[%emt 0:00:16]} 41. e6 {[%emt 0:01:31]} Kd8 {[%emt 0:00:33]} 42. f4 {[%emt 0:00:58]} g4 {[%emt 0:00:49]} 43. Re2 {[%emt 0:01:01]} Rg1+ {[%emt 0:03:29]} 44. Kh2 {[%emt 0:00:04]} Rf1 {[%emt 0:00:05]} 45. Nb4 {[%emt 0:01:33]} Rd1 {[%emt 0:05:29]} 46. Nc6+ {[%emt 0:01:52]} Ke8 {[%emt 0:00:12]} 47. a5 {[%emt 0:00:39]} Bc5 {[%emt 0:00:18]} 48. e7 {[%emt 0:02:25]} Rb1 {[%emt 0:00:47]} 49. Rd2 {[%emt 0:00:57]} Kf7 {[%emt 0:00:27]} 50. Re2 {[%emt 0:00:43]} Ke8 {[%emt 0:00:04]} 51. Rc2 {[%emt 0:01:13]} Rxb5 {[%emt 0:01:08]} 52. f5 {[%emt 0:00:45]} Be3 {[%emt 0:03:59]} 53. f6 {[%emt 0:00:23]} Bg5 {[%emt 0:00:39]} 54. Rf2 {[%emt 0:01:30]} Kf7 {[%emt 0:04:05]} 55. Nd8+ {[%emt 0:00:08]} 1-0

[Event "Hungarian Youth-ch I 2024"]
[Site "Szolnok"]
[Date "2024.04.04"]
[Round "7"]
[White "Panda, Barnabas"]
[Black "Puskas, Mihaly"]
[Result "1-0"]
[ECO "A13"]
[WhiteElo "2066"]
[BlackElo "1978"]
[Annotator "RC"]
[PlyCount "63"]
[EventDate "2024.03.31"]
[EventType "swiss"]
[EventCountry "HUN"]
[SourceTitle "playchess.com"]
[Source "ChessBase"]
[SourceQuality "1"]
[TimeControl "5400+30"]

1. c4 {[%emt 0:00:10]} e6 {[%emt 0:00:15]} 2. g3 {[%emt 0:00:15]} d5 {[%emt 0:00:27]} 3. Nf3 {[%emt 0:00:29]} Nf6 {[%emt 0:00:47]} 4. b3 {[%emt 0:00:12]} c5 {[%emt 0:02:39]} 5. Bg2 {[%emt 0:02:33]} Nc6 {[%emt 0:00:49]} 6. O-O {[%emt 0:00:59]} b6 {[%emt 0:03:42]} 7. cxd5 {[%emt 0:07:01]} exd5 {[%emt 0:04:20]} 8. d4 {[%emt 0:00:41]} Bb7 {[%emt 0:02:22]} 9. Nc3 {[%emt 0:05:35]} Be7 {[%emt 0:02:29]} 10. Ba3 {[%emt 0:05:49]} O-O {[%emt 0:01:28]} 11. Rc1 {[%emt 0:04:44]} Re8 {[%emt 0:15:48]} 12. Re1 {[%emt 0:07:43]} Nb4 {[%emt 0:20:21]} 13. dxc5 {[%emt 0:11:01]} Bxc5 {[%emt 0:02:06]} 14. Na4 {[%emt 0:02:58]} Ne4 {[%emt 0:13:55]} 15. Nxc5 {[%emt 0:05:32]} bxc5 {[%emt 0:01:15]} 16. Nd2 {[%emt 0:00:45]} Qa5 {[%emt 0:05:47]} 17. Bxb4 {[%emt 0:14:49]} Qxb4 {[%emt 0:05:24]} 18. Nxe4 {[%emt 0:01:31]} dxe4 {[%emt 0:00:10]} 19. Rc4 {[%emt 0:05:29]} Qb6 {[%emt 0:00:49]} 20. Qc2 {[%emt 0:00:50]} Rac8 {[%emt 0:02:11]} 21. Bxe4 {[%emt 0:03:14]} Ba6 {[%emt 0:02:02]} 22. Bxh7+ {[%emt 0:01:09]} Kf8 {[%emt 0:00:09]} 23. Rf4 {[%emt 0:02:42]} Rc6 {[%emt 0:03:54]} 24. Bd3 {[%emt 0:01:31]} Bc8 {[%emt 0:01:47]} 25. Rc1 {[%emt 0:02:30]} Bd7 {[%emt 0:02:22]} 26. Bf5 {[%emt 0:01:57]} Bxf5 {[%emt 0:01:06]} 27. Qxf5 {[%emt 0:01:06]} Rc7 {[%emt 0:01:56]} 28. e3 {[%emt 0:02:01]} Kg8 {[%emt 0:02:11]} 29. Rfc4 {[%emt 0:02:23]} Rec8 {[%emt 0:00:45]} 30. Qd5 {[%emt 0:01:37]} a5 {[%emt 0:00:50]} 31. Qe5 {[%emt 0:01:10]} Qb5 {[%emt 0:00:54]} 32. Rg4 {[%emt 0:00:25]} 1-0

[Event "Hungarian Youth-ch I 2024"]
[Site "Szolnok"]
[Date "2024.04.05"]
[Round "7.1"]
[White "Kocsmar, Akos"]
[Black "Gathi, Donat"]
[Result "1/2-1/2"]
[ECO "A05"]
[WhiteElo "2029"]
[BlackElo "2192"]
[Annotator "RC"]
[PlyCount "29"]
[EventDate "2024.03.31"]
[EventType "swiss"]
[EventCountry "HUN"]
[SourceTitle "playchess.com"]
[Source "ChessBase"]
[SourceQuality "1"]
[TimeControl "5400+30"]

1. Nf3 {[%emt 0:00:01]} Nf6 {[%emt 0:00:15]} 2. c4 {[%emt 0:00:04]} g6 {[%emt 0:00:12]} 3. Nc3 {[%emt 0:00:12]} Bg7 {[%emt 0:04:59]} 4. e4 {[%emt 0:00:08]} e5 {[%emt 0:00:08]} 5. Nxe5 {[%emt 0:00:08]} Nxe4 {[%emt 0:22:12]} 6. Nxe4 {[%emt 0:00:54]} Bxe5 {[%emt 0:00:10]} 7. d4 {[%emt 0:02:37]} Bg7 {[%emt 0:02:24]} 8. Bg5 {[%emt 0:02:29]} f6 {[%emt 0:00:08]} 9. Be3 {[%emt 0:00:06]} O-O {[%emt 0:02:02]} 10. Nc3 {[%emt 0:04:39]} d6 {[%emt 0:06:14]} 11. Qd2 {[%emt 0:05:35]} Nc6 {[%emt 0:07:01]} 12. O-O-O {[%emt 0:05:09]} Ne7 {[%emt 0:02:49]} 13. Bh6 {[%emt 0:10:23]} d5 {[%emt 0:01:42]} 14. Bxg7 {[%emt 0:00:38]} Kxg7 15. h4 1/2-1/2

[Event "Hungarian Youth-ch I 2024"]
[Site "Szolnok"]
[Date "2024.04.05"]
[Round "7.2"]
[White "Borzsei, Andras"]
[Black "Szikszai, Bertalan"]
[Result "0-1"]
[ECO "D35"]
[WhiteElo "2126"]
[BlackElo "2312"]
[Annotator "RC"]
[PlyCount "60"]
[EventDate "2024.03.31"]
[EventType "swiss"]
[EventCountry "HUN"]
[SourceTitle "playchess.com"]
[Source "ChessBase"]
[SourceQuality "1"]
[TimeControl "5400+30"]

1. d4 {[%emt 0:00:03]} Nf6 {[%emt 0:00:26]} 2. c4 {[%emt 0:00:04]} e6 {[%emt 0:00:10]} 3. Nc3 {[%emt 0:00:07]} d5 {[%emt 0:00:09]} 4. cxd5 {[%emt 0:00:07]} exd5 {[%emt 0:00:05]} 5. Bg5 {[%emt 0:00:06]} Be7 {[%emt 0:00:25]} 6. e3 {[%emt 0:00:05]} h6 {[%emt 0:00:15]} 7. Bh4 {[%emt 0:00:46]} Bg4 {[%emt 0:00:57]} 8. Qc2 {[%emt 0:06:42]} O-O {[%emt 0:00:42]} 9. Bd3 {[%emt 0:04:31]} Nbd7 {[%emt 0:03:39]} 10. h3 {[%emt 0:14:59]} Be6 {[%emt 0:00:58]} 11. Nge2 {[%emt 0:02:34]} Rc8 {[%emt 0:03:55]} 12. O-O {[%emt 0:03:33]} Re8 {[%emt 0:01:38]} 13. Nf4 {[%emt 0:02:52]} Nf8 {[%emt 0:01:28]} 14. Bxf6 {[%emt 0:14:19]} Bxf6 {[%emt 0:00:58]} 15. b4 {[%emt 0:00:47]} c6 {[%emt 0:02:24]} 16. Na4 {[%emt 0:02:40]} b6 {[%emt 0:09:04]} 17. Rab1 {[%emt 0:00:54]} Bd7 {[%emt 0:05:22]} 18. Rfc1 {[%emt 0:01:54]} Bg5 {[%emt 0:05:13]} 19. Ba6 {[%emt 0:06:23]} Bxf4 {[%emt 0:09:49]} 20. Bxc8 {[%emt 0:01:50]} Qxc8 {[%emt 0:00:48]} 21. exf4 {[%emt 0:02:03]} Bf5 {[%emt 0:00:14]} 22. Qd2 {[%emt 0:00:22]} Bxb1 {[%emt 0:00:12]} 23. Rxb1 {[%emt 0:00:01]} Qf5 {[%emt 0:04:28]} 24. Rc1 {[%emt 0:00:38]} Ng6 {[%emt 0:02:19]} 25. Rxc6 {[%emt 0:03:03]} Nxf4 {[%emt 0:00:38]} 26. Qc2 {[%emt 0:16:48]} Qg5 {[%emt 0:03:52]} 27. g3 {[%emt 0:00:31]} Nxh3+ {[%emt 0:00:52]} 28. Kh2 {[%emt 0:00:13]} Nxf2 {[%emt 0:02:12]} 29. Qxf2 {[%emt 0:04:37]} Qh5+ {[%emt 0:00:06]} 30. Kg1 {[%emt 0:00:03]} Qd1+ {[%emt 0:00:09]} 0-1